[Event "WYCC 2018 O16"]
[Site "Halkidiki"]
[Date "2018.10.26"]
[Round "7"]
[White "Szpar, Milosz"]
[Black "De Waele, Warre"]
[Result "1-0"]
[ECO "B94"]
[WhiteElo "2328"]
[BlackElo "2272"]
[Annotator "NA"]
[PlyCount "197"]
[EventDate "2018.10.20"]
[EventType "swiss"]
[EventCountry "GRE"]
[SourceTitle "playchess.com"]
[Source "ChessBase"]
[SourceQuality "1"]
[TimeControl "40/5400+30:1800+30"]

1. e4 {[%emt 0:00:00]} c5 {[%emt 0:00:00]} 2. Nf3 {[%emt 0:00:00]} d6 {[%emt 0:00:00]} 3. d4 {[%emt 0:00:00]} Nf6 {[%emt 0:00:00]} 4. Nc3 {[%emt 0:00:21]} cxd4 {[%emt 0:00:09]} 5. Nxd4 {[%emt 0:01:19]} a6 {[%emt 0:00:31]} 6. Bg5 {[%emt 0:00:58]} Nbd7 {[%emt 0:00:33]} 7. Qe2 {[%emt 0:01:42]} h6 {[%emt 0:01:26]} 8. Bh4 {[%emt 0:00:50]} g6 {[%emt 0:00:14]} 9. f4 {[%emt 0:03:14]} e5 {[%emt 0:00:30]} 10. fxe5 {[%emt 0:02:33]} dxe5 {[%emt 0:00:21]} 11. O-O-O {[%emt 0:01:15]} Qc7 {[%emt 0:00:10]} 12. Nb3 {[%emt 0:03:30]} b5 {[%emt 0:01:25]} 13. Qf3 {[%emt 0:02:46]} Bg7 $14 {[%emt 0:02:43]} 14. a3 {[%emt 0:04:33]} O-O {[%emt 0:00:33]} 15. Be2 {[%emt 0:00:20]} Bb7 {[%emt 0:00:21]} 16. Rd2 {[%emt 0:01:00]} Rfe8 {[%emt 0:02:16]} 17. Rhd1 {[%emt 0:03:25]} Re6 {[%emt 0:00:07]} 18. Bf2 {[%emt 0:07:33]} Rb8 {[%emt 0:16:06]} 19. g4 {[%emt 0:14:13]} Bc6 {[%emt 0:03:18]} 20. h4 {[%emt 0:11:50]} b4 {[%emt 0:19:13]} 21. axb4 {[%emt 0:01:44]} Rxb4 {[%emt 0:02:18]} 22. g5 {[%emt 0:03:43]} Nxe4 {[%emt 0:11:04]} 23. Rxd7 {[%emt 0:04:34]} Bxd7 {[%emt 0:00:14]} 24. Rxd7 {[%emt 0:09:40]} Qxd7 {[%emt 0:00:21]} 25. Nxe4 {[%emt 0:00:03]} Rc6 {[%emt 0:08:05]} 26. Nbc5 {[%emt 0:02:13]} Qc7 {[%emt 0:08:50]} 27. c3 {[%emt 0:02:05]} Rb8 {[%emt 0:04:04]} 28. Be3 {[%emt 0:02:41]} Qa5 {[%emt 0:04:31]} 29. b4 {[%emt 0:04:39]} Qa1+ {[%emt 0:02:39]} 30. Kd2 {[%emt 0:02:33]} Rd8+ {[%emt 0:00:31]} 31. Bd3 {[%emt 0:02:00]} Qb2+ {[%emt 0:01:22]} 32. Ke1 {[%emt 0:00:23]} hxg5 {[%emt 0:02:02]} 33. hxg5 {[%emt 0:02:38]} Rcc8 {[%emt 0:00:42]} 34. Bd2 {[%emt 0:02:16]} a5 {[%emt 0:01:26]} 35. bxa5 {[%emt 0:02:51]} Qa1+ {[%emt 0:02:31]} 36. Ke2 {[%emt 0:00:08]} Qg1 {[%emt 0:00:58]} 37. Nb7 {[%emt 0:01:25]} Qh2+ {[%emt 0:01:27]} 38. Kf1 {[%emt 0:00:20]} Rd7 {[%emt 0:02:19]} 39. a6 {[%emt 0:00:12]} Ra8 {[%emt 0:01:47]} 40. Nbc5 {[%emt 0:00:00]} Rda7 {[%emt 0:00:00]} 41. Bc4 {[%emt 0:04:34]} Rc8 {[%emt 0:07:42]} 42. Be3 {[%emt 0:03:54]} Rb8 {[%emt 0:01:02]} 43. Nb3 {[%emt 0:01:26]} Rxa6 {[%emt 0:02:31]} 44. Qxf7+ {[%emt 0:06:15]} Kh8 {[%emt 0:01:02]} 45. Bxa6 {[%emt 0:00:39]} Rf8 {[%emt 0:00:15]} 46. Qxf8+ {[%emt 0:00:11]} Bxf8 {[%emt 0:00:03]} 47. Nbd2 {[%emt 0:00:48]} Kg7 {[%emt 0:02:32]} 48. Bc4 {[%emt 0:01:17]} Ba3 {[%emt 0:01:04]} 49. Bd5 {[%emt 0:02:02]} Bb2 {[%emt 0:03:56]} 50. Ke1 {[%emt 0:00:43]} Qh1+ {[%emt 0:00:38]} 51. Ke2 {[%emt 0:00:09]} Qa1 {[%emt 0:00:15]} 52. Kd3 {[%emt 0:00:51]} Bc1 {[%emt 0:01:52]} 53. Bc5 {[%emt 0:03:01]} Qa6+ {[%emt 0:00:41]} 54. Bc4 {[%emt 0:03:31]} Qc6 {[%emt 0:00:12]} 55. Nb3 {[%emt 0:01:53]} Qd7+ {[%emt 0:01:01]} 56. Kc2 {[%emt 0:01:50]} Bxg5 {[%emt 0:00:27]} 57. Bd6 {[%emt 0:00:56]} Bf4 {[%emt 0:01:46]} 58. Nbc5 {[%emt 0:00:10]} Qc6 {[%emt 0:01:55]} 59. Be6 {[%emt 0:03:37]} g5 {[%emt 0:01:41]} 60. c4 {[%emt 0:00:08]} Be3 {[%emt 0:01:10]} 61. Bxe5+ {[%emt 0:00:28]} Kh6 {[%emt 0:01:03]} 62. Bd5 {[%emt 0:00:14]} Qe8 {[%emt 0:01:35]} 63. Ne6 {[%emt 0:01:32]} Qa4+ {[%emt 0:00:54]} 64. Kd3 {[%emt 0:00:12]} Qb3+ {[%emt 0:00:52]} 65. Nc3 {[%emt 0:00:24]} Ba7 {[%emt 0:01:35]} 66. c5 {[%emt 0:00:22]} Qa3 {[%emt 0:03:15]} 67. c6 {[%emt 0:00:05]} Qa6+ {[%emt 0:00:07]} 68. Ke4 {[%emt 0:00:04]} Bb6 {[%emt 0:02:09]} 69. c7 {[%emt 0:00:41]} Bxc7 {[%emt 0:01:31]} 70. Nxc7 {[%emt 0:01:11]} Qg6+ {[%emt 0:00:08]} 71. Ke3 {[%emt 0:00:37]} Qf5 {[%emt 0:00:21]} 72. Bg3 {[%emt 0:00:47]} Qg4 {[%emt 0:00:39]} 73. Ne4 {[%emt 0:00:22]} Qd1 {[%emt 0:00:21]} 74. Be6 {[%emt 0:00:30]} Qc1+ {[%emt 0:00:30]} 75. Kd4 {[%emt 0:00:12]} Qa1+ {[%emt 0:00:33]} 76. Kd5 {[%emt 0:00:35]} Qa5+ {[%emt 0:00:45]} 77. Kd6 {[%emt 0:00:57]} Qb4+ {[%emt 0:01:25]} 78. Ke5 {[%emt 0:00:40]} Qb2+ {[%emt 0:00:12]} 79. Kf5 {[%emt 0:00:19]} Qc1 {[%emt 0:00:30]} 80. Nd5 {[%emt 0:00:44]} Qf1+ {[%emt 0:00:15]} 81. Bf2 {[%emt 0:00:53]} Qh3+ {[%emt 0:00:10]} 82. Kf6 {[%emt 0:00:29]} Qf3+ {[%emt 0:00:06]} 83. Ke5 {[%emt 0:00:04]} Kg6 {[%emt 0:01:45]} 84. Ne7+ {[%emt 0:00:40]} Kh6 {[%emt 0:00:19]} 85. Bf5 {[%emt 0:01:47]} Qf4+ {[%emt 0:00:15]} 86. Kf6 {[%emt 0:00:42]} Qb8 {[%emt 0:01:24]} 87. Be3 {[%emt 0:01:02]} Qb2+ {[%emt 0:00:08]} 88. Ke6 {[%emt 0:00:04]} Qa2+ {[%emt 0:00:33]} 89. Nd5 {[%emt 0:00:20]} Qa6+ {[%emt 0:00:13]} 90. Ke5 {[%emt 0:00:50]} Qa1+ {[%emt 0:00:22]} 91. Bd4 {[%emt 0:00:51]} Qa8 {[%emt 0:00:38]} 92. Nd6 {[%emt 0:00:48]} Qh8+ {[%emt 0:00:56]} 93. Ke4 {[%emt 0:00:26]} Qf8 {[%emt 0:00:40]} 94. Be5 {[%emt 0:00:22]} Qa8 {[%emt 0:00:37]} 95. Bd4 {[%emt 0:00:38]} Qc6 {[%emt 0:00:43]} 96. Ke5 {[%emt 0:00:24]} Kg7 {[%emt 0:01:06]} 97. Ke4+ {[%emt 0:00:56]} Kh6 {[%emt 0:00:21]} 98. Nf7+ {[%emt 0:00:15]} Kh5 {[%emt 0:00:08]} 99. Bg4+ {[%emt 0:00:10]} 1-0

[Event "WYCC 2018 O16"]
[Site "Halkidiki"]
[Date "2018.10.26"]
[Round "7"]
[White "Sahidi, Samir"]
[Black "Kim, Yunseo"]
[Result "1/2-1/2"]
[ECO "B10"]
[WhiteElo "2315"]
[BlackElo "1995"]
[Annotator "NA"]
[PlyCount "139"]
[EventDate "2018.10.20"]
[EventType "swiss"]
[EventCountry "GRE"]
[SourceTitle "playchess.com"]
[Source "ChessBase"]
[SourceQuality "1"]
[TimeControl "40/5400+30:1800+30"]

1. e4 {[%emt 0:00:00]} c6 {[%emt 0:00:00]} 2. Nc3 {[%emt 0:00:00]} d5 {[%emt 0:00:00]} 3. Nf3 {[%emt 0:00:02]} Nf6 {[%emt 0:00:06]} 4. Qe2 {[%emt 0:02:01]} d4 $11 {[%emt 0:08:55] LiveBook: 3 Games} 5. Nb1 {[%emt 0:00:35]} c5 {[%emt 0:02:55]} 6. g3 {[%emt 0:01:02]} Nc6 {[%emt 0:00:43]} 7. d3 {[%emt 0:00:55]} e5 {[%emt 0:01:29]} 8. Bg2 {[%emt 0:01:12]} Be7 {[%emt 0:01:56]} 9. O-O {[%emt 0:01:14]} Bg4 {[%emt 0:00:53]} 10. h3 {[%emt 0:01:03]} Bh5 {[%emt 0:00:12]} 11. g4 {[%emt 0:05:01]} Bg6 {[%emt 0:00:08]} 12. Nh4 {[%emt 0:02:24]} Nd7 {[%emt 0:11:14]} 13. Nxg6 {[%emt 0:04:07]} hxg6 {[%emt 0:00:28]} 14. f4 {[%emt 0:00:42]} exf4 {[%emt 0:01:48]} 15. Bxf4 {[%emt 0:00:29]} Nde5 {[%emt 0:02:15]} 16. Nd2 {[%emt 0:04:17]} Bg5 {[%emt 0:04:22]} 17. Bh2 {[%emt 0:01:42]} O-O {[%emt 0:05:55]} 18. Kh1 {[%emt 0:01:25]} Qe7 {[%emt 0:02:52]} 19. Rad1 {[%emt 0:17:47]} b5 {[%emt 0:17:22]} 20. Nf3 {[%emt 0:06:13]} Nxf3 {[%emt 0:00:51]} 21. Qxf3 {[%emt 0:00:58]} Ne5 {[%emt 0:02:09]} 22. Qg3 {[%emt 0:01:24]} f6 {[%emt 0:04:23]} 23. h4 {[%emt 0:01:16]} Be3 {[%emt 0:00:41]} 24. g5 {[%emt 0:00:59]} Rae8 {[%emt 0:02:56]} 25. gxf6 {[%emt 0:04:31]} Rxf6 {[%emt 0:05:58]} 26. Rxf6 {[%emt 0:02:31]} gxf6 {[%emt 0:03:44]} 27. Bh3 {[%emt 0:02:45]} Kg7 {[%emt 0:02:06]} 28. Rf1 {[%emt 0:03:10]} Rh8 {[%emt 0:01:58]} 29. Bg4 {[%emt 0:02:12]} c4 {[%emt 0:05:06]} 30. Be2 {[%emt 0:00:35]} cxd3 {[%emt 0:00:24]} 31. cxd3 {[%emt 0:00:37]} Rc8 {[%emt 0:01:50]} 32. Bg1 {[%emt 0:10:29]} Bxg1 {[%emt 0:02:54]} 33. Rxg1 {[%emt 0:00:38]} Rh8 {[%emt 0:03:23]} 34. h5 {[%emt 0:01:28]} g5 {[%emt 0:00:13]} 35. Qh3 {[%emt 0:01:15]} Kh6 {[%emt 0:03:10]} 36. Qf5 {[%emt 0:01:25]} Rd8 {[%emt 0:00:52]} 37. Rc1 {[%emt 0:01:18]} Rd6 {[%emt 0:00:45]} 38. Rc5 {[%emt 0:01:42]} a6 {[%emt 0:00:30]} 39. Kg2 Qg7 {[%emt 0:01:03]} 40. Rc8 {[%emt 0:00:00]} Rc6 {[%emt 0:00:00]} 41. Rxc6 {[%emt 0:10:02]} Nxc6 {[%emt 0:01:00]} 42. Qd5 {[%emt 0:01:21]} Qc7 {[%emt 0:12:20]} 43. Qe6 {[%emt 0:20:15]} Ne5 {[%emt 0:14:05]} 44. Qxf6+ {[%emt 0:00:26]} Kh7 {[%emt 0:00:06]} 45. h6 {[%emt 0:03:41]} Ng6 {[%emt 0:01:02]} 46. Qxd4 {[%emt 0:02:57]} Nf4+ {[%emt 0:02:26]} 47. Kf2 {[%emt 0:00:27]} Kxh6 {[%emt 0:01:12]} 48. Qh8+ {[%emt 0:00:53]} Kg6 {[%emt 0:00:09]} 49. Qg8+ {[%emt 0:00:11]} Kh6 {[%emt 0:00:14]} 50. Qf8+ {[%emt 0:00:22]} Kg6 {[%emt 0:00:30]} 51. Qf5+ {[%emt 0:01:13]} Kh6 {[%emt 0:00:07]} 52. Qf6+ {[%emt 0:02:51]} Kh7 {[%emt 0:00:07]} 53. Qc3 {[%emt 0:04:56]} Nh3+ {[%emt 0:02:04]} 54. Ke1 {[%emt 0:00:09]} Qg3+ {[%emt 0:00:49]} 55. Kd2 {[%emt 0:00:31]} Qf4+ {[%emt 0:00:25]} 56. Kc2 {[%emt 0:00:26]} g4 {[%emt 0:01:11]} 57. Qc8 {[%emt 0:00:46]} Nf2 {[%emt 0:00:47]} 58. Qb7+ {[%emt 0:01:32]} Kh6 {[%emt 0:00:35]} 59. Qxa6+ {[%emt 0:00:06]} Kg5 {[%emt 0:00:07]} 60. Qxb5+ {[%emt 0:00:08]} Kh4 {[%emt 0:00:08]} 61. a4 {[%emt 0:00:59]} Qe3 {[%emt 0:00:36]} 62. Bxg4 {[%emt 0:00:28]} Kxg4 {[%emt 0:00:33]} 63. a5 {[%emt 0:02:32]} Qe2+ {[%emt 0:00:23]} 64. Kc3 {[%emt 0:00:10]} Nxe4+ {[%emt 0:00:26]} 65. Kd4 {[%emt 0:00:43]} Ng3 {[%emt 0:00:58]} 66. Kc5 {[%emt 0:00:43]} Qe5+ {[%emt 0:00:49]} 67. Kc4 {[%emt 0:00:12]} Qf4+ {[%emt 0:00:18]} 68. Kc5 {[%emt 0:00:32]} Qe5+ {[%emt 0:00:24]} 69. Kc6 {[%emt 0:00:22]} Qf6+ {[%emt 0:00:38]} 70. Kc5 {[%emt 0:00:40]} 1/2-1/2

[Event "WYCC 2018 O16"]
[Site "Halkidiki"]
[Date "2018.10.26"]
[Round "7"]
[White "Mis, Mieszko"]
[Black "Van Malder, Dries"]
[Result "1-0"]
[ECO "A40"]
[WhiteElo "2307"]
[BlackElo "2150"]
[Annotator "NA"]
[PlyCount "99"]
[EventDate "2018.10.20"]
[EventType "swiss"]
[EventCountry "GRE"]
[SourceTitle "playchess.com"]
[Source "ChessBase"]
[SourceQuality "1"]
[TimeControl "40/5400+30:1800+30"]

1. d4 {[%emt 0:00:00]} Nf6 {[%emt 0:00:00]} 2. c4 {[%emt 0:00:00]} e6 {[%emt 0:00:00]} 3. g3 {[%emt 0:00:00]} Bb4+ {[%emt 0:00:00]} 4. Nd2 {[%emt 0:00:44]} O-O {[%emt 0:00:25]} 5. Bg2 {[%emt 0:00:28]} d5 {[%emt 0:03:54]} 6. Ngf3 {[%emt 0:00:10]} b6 {[%emt 0:03:21]} 7. O-O {[%emt 0:01:25]} Bb7 {[%emt 0:00:48]} 8. Ne5 {[%emt 0:03:38]} Nbd7 {[%emt 0:01:20]} 9. Qa4 {[%emt 0:03:39]} Bxd2 {[%emt 0:02:23]} 10. Bxd2 {[%emt 0:01:40]} Nxe5 {[%emt 0:01:29]} 11. dxe5 {[%emt 0:00:04]} Nd7 {[%emt 0:03:49]} 12. Bc3 {[%emt 0:03:56]} Nc5 {[%emt 0:10:26]} 13. Qc2 {[%emt 0:04:05]} dxc4 {[%emt 0:00:59]} 14. Rfd1 {[%emt 0:01:49]} Qe7 {[%emt 0:02:42]} 15. Bxb7 {[%emt 0:02:08]} Nxb7 {[%emt 0:00:08]} 16. Qe4 {[%emt 0:00:05]} c5 {[%emt 0:08:52]} 17. Qxc4 {[%emt 0:01:38]} a6 {[%emt 0:06:14]} 18. a4 {[%emt 0:00:49]} Rfd8 {[%emt 0:09:56]} 19. e4 {[%emt 0:11:20]} a5 {[%emt 0:09:40]} 20. Qb5 {[%emt 0:11:53]} Qc7 {[%emt 0:00:26]} 21. f4 {[%emt 0:01:36]} h6 {[%emt 0:12:10]} 22. f5 {[%emt 0:07:16]} Kh7 {[%emt 0:03:54]} 23. Rac1 {[%emt 0:10:53]} Rac8 {[%emt 0:01:23]} 24. Kg2 {[%emt 0:08:42]} Kg8 {[%emt 0:05:22]} 25. g4 {[%emt 0:01:26]} Kh7 {[%emt 0:00:28]} 26. h4 {[%emt 0:01:06]} Rb8 {[%emt 0:06:43]} 27. g5 {[%emt 0:04:49]} Rbc8 {[%emt 0:00:23]} 28. Kh3 {[%emt 0:04:19]} c4 {[%emt 0:02:50]} 29. Bd4 {[%emt 0:01:49]} Qc6 {[%emt 0:00:07]} 30. Qxc6 {[%emt 0:00:43]} Rxc6 {[%emt 0:00:06]} 31. Be3 {[%emt 0:01:40]} Rxd1 {[%emt 0:00:23]} 32. Rxd1 {[%emt 0:00:01]} Nc5 {[%emt 0:00:48]} 33. Rd6 {[%emt 0:00:58]} Rc7 {[%emt 0:02:29]} 34. Bxc5 {[%emt 0:00:20]} Rxc5 {[%emt 0:00:05]} 35. fxe6 {[%emt 0:00:44]} fxe6 {[%emt 0:00:10]} 36. Rxe6 {[%emt 0:00:08]} hxg5 {[%emt 0:00:08]} 37. hxg5 {[%emt 0:00:03]} b5 {[%emt 0:00:46]} 38. Kg4 {[%emt 0:07:39]} b4 {[%emt 0:02:11]} 39. g6+ {[%emt 0:00:03]} Kh6 {[%emt 0:00:06]} 40. Kf5 {[%emt 0:00:00]} Rc8 {[%emt 0:00:00]} 41. Rd6 {[%emt 0:01:56]} Rf8+ {[%emt 0:08:43]} 42. Ke6 {[%emt 0:01:07]} c3 {[%emt 0:01:25]} 43. bxc3 {[%emt 0:00:07]} bxc3 {[%emt 0:00:07]} 44. Rc6 {[%emt 0:00:45]} Re8+ {[%emt 0:00:47]} 45. Kd6 {[%emt 0:01:00]} Kxg6 {[%emt 0:01:12]} 46. Kd7+ {[%emt 0:00:57]} Kf7 {[%emt 0:00:11]} 47. e6+ {[%emt 0:00:08]} Kf8 {[%emt 0:00:18]} 48. Rxc3 {[%emt 0:00:09]} Ra8 {[%emt 0:00:29]} 49. e7+ {[%emt 0:00:06]} Kf7 {[%emt 0:00:04]} 50. Rf3+ {[%emt 0:00:03]} 1-0

[Event "WYCC 2018 O16"]
[Site "Halkidiki"]
[Date "2018.10.26"]
[Round "7"]
[White "Stevanic, David"]
[Black "Stoleriu, George"]
[Result "1-0"]
[ECO "C18"]
[WhiteElo "2281"]
[BlackElo "2362"]
[Annotator "NA"]
[PlyCount "111"]
[EventDate "2018.10.20"]
[EventType "swiss"]
[EventCountry "GRE"]
[SourceTitle "playchess.com"]
[Source "ChessBase"]
[SourceQuality "1"]
[TimeControl "40/5400+30:1800+30"]

1. e4 {[%emt 0:00:00]} e6 {[%emt 0:00:00]} 2. d4 {[%emt 0:00:00]} d5 {[%emt 0:00:00]} 3. Nc3 {[%emt 0:00:00]} Bb4 {[%emt 0:00:00]} 4. e5 {[%emt 0:00:00]} c5 {[%emt 0:00:00]} 5. a3 {[%emt 0:00:34]} Bxc3+ {[%emt 0:00:00]} 6. bxc3 {[%emt 0:00:04]} Qc7 {[%emt 0:00:00]} 7. Qg4 {[%emt 0:03:50]} f6 {[%emt 0:00:05]} 8. Nf3 {[%emt 0:16:24]} c4 {[%emt 0:00:19]} 9. Bf4 {[%emt 0:07:12]} Qf7 $11 {[%emt 0:01:35]} 10. h4 {[%emt 0:04:58]} h5 {[%emt 0:00:49]} 11. Qh3 {[%emt 0:01:47]} Nc6 {[%emt 0:05:38]} 12. Be2 {[%emt 0:07:30]} Nge7 {[%emt 0:10:43]} 13. g4 {[%emt 0:01:27]} hxg4 {[%emt 0:14:53]} 14. Qxg4 {[%emt 0:00:06]} Qg6 {[%emt 0:00:28]} 15. Qxg6+ {[%emt 0:00:55]} Nxg6 {[%emt 0:00:37]} 16. Bg3 {[%emt 0:00:57]} Nce7 {[%emt 0:09:10]} 17. h5 {[%emt 0:07:21]} Nf5 {[%emt 0:04:32]} 18. Kd2 {[%emt 0:00:07]} Nge7 {[%emt 0:00:41]} 19. Rag1 {[%emt 0:03:28]} Kf7 {[%emt 0:03:05]} 20. Bf4 {[%emt 0:05:25]} Ng8 {[%emt 0:24:13]} 21. exf6 {[%emt 0:06:07]} gxf6 {[%emt 0:01:00]} 22. h6 {[%emt 0:04:55]} Nge7 {[%emt 0:17:50]} 23. Nh4 {[%emt 0:03:33]} Bd7 {[%emt 0:03:39]} 24. Bh5+ {[%emt 0:06:01]} Kf8 {[%emt 0:00:04]} 25. Nxf5 {[%emt 0:09:53]} Nxf5 {[%emt 0:00:15]} 26. Rg6 {[%emt 0:01:22]} Ke7 {[%emt 0:00:29]} 27. Rhg1 {[%emt 0:01:18]} Rh7 {[%emt 0:02:01]} 28. Rxf6 {[%emt 0:01:34]} Rah8 {[%emt 0:01:17]} 29. Bg5 {[%emt 0:02:39]} Kd6 {[%emt 0:00:16]} 30. Bg6 {[%emt 0:00:45]} Rxh6 {[%emt 0:00:45]} 31. Bxf5 {[%emt 0:01:13]} Rxf6 {[%emt 0:00:34]} 32. Bxf6 {[%emt 0:00:05]} Rf8 {[%emt 0:00:12]} 33. Be5+ {[%emt 0:00:06]} Kc6 {[%emt 0:00:04]} 34. Bh3 {[%emt 0:02:52]} Rxf2+ {[%emt 0:00:06]} 35. Kc1 {[%emt 0:00:06]} Kb6 {[%emt 0:00:20]} 36. Rg6 {[%emt 0:00:54]} Ba4 {[%emt 0:00:35]} 37. Rg2 {[%emt 0:01:05]} Rf3 {[%emt 0:01:06]} 38. Bxe6 {[%emt 0:00:05]} Rxc3 {[%emt 0:00:06]} 39. Bxd5 {[%emt 0:00:39]} Rxa3 {[%emt 0:01:08]} 40. Kb2 {[%emt 0:00:00]} Rh3 {[%emt 0:00:00]} 41. Bxc4 {[%emt 0:01:10]} Bc6 {[%emt 0:04:15]} 42. d5 {[%emt 0:01:57]} Bb5 {[%emt 0:01:44]} 43. Bd4+ {[%emt 0:01:02]} Ka5 {[%emt 0:01:59]} 44. Bxb5 {[%emt 0:00:19]} Kxb5 {[%emt 0:00:04]} 45. Bxa7 {[%emt 0:00:14]} b6 {[%emt 0:01:02]} 46. Bb8 {[%emt 0:00:47]} Kc5 {[%emt 0:00:20]} 47. d6 {[%emt 0:00:10]} Rh8 {[%emt 0:00:21]} 48. Bc7 {[%emt 0:00:05]} Kc6 {[%emt 0:00:17]} 49. Rg3 {[%emt 0:00:26]} Rh5 {[%emt 0:00:30]} 50. Rc3+ {[%emt 0:00:14]} Kd7 {[%emt 0:00:04]} 51. Rb3 {[%emt 0:00:39]} b5 {[%emt 0:00:05]} 52. Re3 {[%emt 0:00:48]} Kc6 {[%emt 0:00:15]} 53. Re8 {[%emt 0:00:34]} Kd7 {[%emt 0:00:48]} 54. Rb8 {[%emt 0:00:10]} Kc6 {[%emt 0:00:15]} 55. Rb6+ {[%emt 0:00:07]} Kd7 {[%emt 0:00:03]} 56. Kb3 {[%emt 0:00:10]} 1-0

[Event "WYCC 2018 O16"]
[Site "Halkidiki"]
[Date "2018.10.26"]
[Round "7"]
[White "Talukdar, Rohan"]
[Black "Ibrahimli, Murad"]
[Result "0-1"]
[ECO "C55"]
[WhiteElo "2279"]
[BlackElo "2379"]
[Annotator "NA"]
[PlyCount "102"]
[EventDate "2018.10.20"]
[EventType "swiss"]
[EventCountry "GRE"]
[SourceTitle "playchess.com"]
[Source "ChessBase"]
[SourceQuality "1"]
[TimeControl "40/5400+30:1800+30"]

1. e4 {[%emt 0:00:00]} e5 {[%emt 0:00:00]} 2. Nf3 {[%emt 0:00:00]} Nc6 {[%emt 0:00:00]} 3. Bc4 {[%emt 0:00:00]} Nf6 {[%emt 0:00:09]} 4. d3 {[%emt 0:00:00]} Be7 {[%emt 0:00:20]} 5. O-O {[%emt 0:01:05]} O-O {[%emt 0:00:03]} 6. Bb3 {[%emt 0:00:34]} d6 {[%emt 0:00:19]} 7. c3 {[%emt 0:00:08]} Na5 {[%emt 0:02:03]} 8. Bc2 {[%emt 0:01:00]} c5 {[%emt 0:00:02]} 9. Nbd2 {[%emt 0:00:25]} Nc6 {[%emt 0:00:07]} 10. Re1 {[%emt 0:00:03]} Re8 {[%emt 0:00:56]} 11. a3 {[%emt 0:00:12]} Bf8 {[%emt 0:01:12]} 12. b4 {[%emt 0:00:46]} a6 {[%emt 0:01:15]} 13. Bb2 $11 {[%emt 0:04:11] LiveBook: 13 Games} Bg4 {[%emt 0:22:23]} 14. Nf1 {[%emt 0:14:36]} d5 {[%emt 0:29:31]} 15. exd5 {[%emt 0:01:11]} Nxd5 {[%emt 0:00:55]} 16. h3 {[%emt 0:02:50]} Bh5 {[%emt 0:02:40]} 17. Ng3 Bg6 18. Ne4 {[%emt 0:28:41]} cxb4 {[%emt 0:01:28]} 19. axb4 {[%emt 0:05:12]} h6 {[%emt 0:01:39]} 20. Qd2 {[%emt 0:05:17]} Qb6 {[%emt 0:05:00]} 21. Ba4 {[%emt 0:05:57]} Rad8 {[%emt 0:02:04]} 22. Qc2 {[%emt 0:00:39]} Nf4 {[%emt 0:01:57]} 23. Re3 {[%emt 0:03:25]} Rxd3 {[%emt 0:01:20]} 24. Rxd3 {[%emt 0:01:57]} Bxe4 {[%emt 0:00:04]} 25. Ne1 {[%emt 0:00:22]} Nxd3 {[%emt 0:00:30]} 26. Nxd3 {[%emt 0:00:03]} Qd8 {[%emt 0:01:07]} 27. Rd1 {[%emt 0:00:35]} Qg5 {[%emt 0:00:06]} 28. f3 {[%emt 0:06:47]} Bxf3 {[%emt 0:00:13]} 29. Rf1 {[%emt 0:00:02]} Bd5 {[%emt 0:03:41]} 30. Bb3 {[%emt 0:02:40]} Rd8 {[%emt 0:02:09]} 31. Bxd5 {[%emt 0:03:13]} Rxd5 {[%emt 0:00:06]} 32. Nf2 {[%emt 0:00:15]} Rd8 {[%emt 0:01:29]} 33. Bc1 {[%emt 0:00:35]} Qe7 {[%emt 0:03:23]} 34. Ne4 {[%emt 0:00:12]} Qe6 {[%emt 0:00:34]} 35. Qf2 {[%emt 0:01:08]} Qg6 {[%emt 0:01:29]} 36. Qf3 {[%emt 0:01:39]} Be7 {[%emt 0:00:50]} 37. g4 {[%emt 0:02:00]} Rd7 {[%emt 0:02:16]} 38. Qg2 {[%emt 0:02:34]} Nd8 {[%emt 0:01:36]} 39. Ng3 {[%emt 0:01:56]} Qc6 {[%emt 0:00:32]} 40. Ne4 {[%emt 0:00:29]} Ne6 {[%emt 0:00:35]} 41. Be3 {[%emt 0:01:20]} Rd3 {[%emt 0:07:38]} 42. Re1 {[%emt 0:02:28]} Bh4 {[%emt 0:02:47]} 43. Re2 {[%emt 0:00:31]} Nf4 {[%emt 0:03:24]} 44. Bxf4 {[%emt 0:01:07]} exf4 {[%emt 0:00:10]} 45. Qf1 {[%emt 0:00:37]} f3 {[%emt 0:01:03]} 46. Re1 {[%emt 0:01:18]} Rd2 {[%emt 0:01:14]} 47. Re3 {[%emt 0:00:47]} Rg2+ {[%emt 0:00:12]} 48. Kh1 {[%emt 0:00:12]} Qc7 {[%emt 0:00:02]} 49. Qxg2 {[%emt 0:02:12]} fxg2+ {[%emt 0:00:07]} 50. Kxg2 {[%emt 0:00:05]} g6 {[%emt 0:00:12]} 51. Nc5 {[%emt 0:01:04]} Qd8 0-1